[Event "Titled Tuesday Blitz May 9 Early 2023"]
[White "Thorhallsson, Simon"]
[Black "Gomes, Luiz Alexandre de Souza"]
[WhiteFideId "2310090"]
[BlackFideId "2102790"]
[WhiteElo "2108"]
[BlackElo "2382"]
[Result "0-1"]
[Round "04"]
[TimeControl "180+2"]
[Date "2023.05.09"]
[WhiteClock "0:00:14"]
[BlackClock "0:00:51"]

1. e4 {[%clk 0:03:00]}  c5 {[%clk 0:02:58]} 2. Nc3 {[%clk 0:03:01]}  e6 {[%clk 0:02:58]} 3. Nge2 {[%clk 0:03:00]}  a6 {[%clk 0:02:58]} 4. g3 {[%clk 0:03:01]}  Nc6 {[%clk 0:02:58]} 5. Bg2 {[%clk 0:03:01]}  d6 {[%clk 0:02:59]} 6. d4 {[%clk 0:03:00]}  cxd4 {[%clk 0:02:59]} 7. Nxd4 {[%clk 0:03:01]}  Qc7 {[%clk 0:02:59]} 8. O-O {[%clk 0:03:01]}  Nf6 {[%clk 0:02:59]} 9. Re1 {[%clk 0:03:02]}  Be7 {[%clk 0:02:59]} 10. h3 {[%clk 0:02:52]}  Bd7 {[%clk 0:02:49]} 11. Nxc6 {[%clk 0:02:24]}  Bxc6 {[%clk 0:02:47]} 12. a4 {[%clk 0:02:24]}  O-O {[%clk 0:02:43]} 13. a5 {[%clk 0:02:22]}  Rac8 {[%clk 0:02:33]} 14. Be3 {[%clk 0:02:22]}  Nd7 {[%clk 0:02:32]} 15. Ne2 {[%clk 0:02:06]}  Rfd8 {[%clk 0:02:22]} 16. Nd4 {[%clk 0:01:58]}  Qb8 {[%clk 0:02:20]} 17. c4 {[%clk 0:01:51]}  Ne5 {[%clk 0:02:12]} 18. b3 {[%clk 0:01:49]}  Be8 {[%clk 0:02:07]} 19. f4 {[%clk 0:01:41]}  Nc6 {[%clk 0:02:07]} 20. Qd2 {[%clk 0:01:33]}  Nxd4 {[%clk 0:02:06]} 21. Bxd4 {[%clk 0:01:32]}  Bc6 {[%clk 0:02:06]} 22. b4 {[%clk 0:01:29]}  d5 {[%clk 0:02:01]} 23. exd5 {[%clk 0:01:28]}  Bd7 {[%clk 0:01:52]} 24. Qb2 {[%clk 0:01:22]}  Bf8 {[%clk 0:01:51]} 25. Be5 {[%clk 0:01:17]}  Qa7+ {[%clk 0:01:50]} 26. Kh2 {[%clk 0:01:18]}  exd5 {[%clk 0:01:49]} 27. Bxd5 {[%clk 0:01:17]}  Bf5 {[%clk 0:01:30]} 28. Rad1 {[%clk 0:01:11]}  b6 {[%clk 0:01:24]} 29. Bd4 {[%clk 0:01:08]}  Rxd5 {[%clk 0:01:16]} 30. Bxb6 {[%clk 0:00:50]}  Rxd1 {[%clk 0:01:16]} 31. Rxd1 {[%clk 0:00:36]}  Qb7 {[%clk 0:01:10]} 32. b5 {[%clk 0:00:33]}  axb5 {[%clk 0:01:10]} 33. Qxb5 {[%clk 0:00:33]}  Be6 {[%clk 0:01:03]} 34. c5 {[%clk 0:00:33]}  Qf3 {[%clk 0:01:03]} 35. Rf1 {[%clk 0:00:31]}  Qc3 {[%clk 0:00:55]} 36. Rf2 {[%clk 0:00:24]}  Bxc5 {[%clk 0:00:54]} 37. Bxc5 {[%clk 0:00:18]}  Qxc5 {[%clk 0:00:55]} 38. Qxc5 {[%clk 0:00:17]}  Rxc5 {[%clk 0:00:55]} 39. Rb2 {[%clk 0:00:16]}  h6 {[%clk 0:00:51]} 40. a6 {[%clk 0:00:16]}  Ra5 {[%clk 0:00:51]} 41. Rb6 {[%clk 0:00:16]}  Ra2+ {[%clk 0:00:51]} 42. Kg1 {[%clk 0:00:14]}  Bxh3 {[%clk 0:00:51]} 0-1


[Site "https://www.chess.com"]

[Event "Titled Tuesday Blitz May 9 Early 2023"]
[White "Tatarinov, Dmitry"]
[Black "Staudenhocker43"]
[WhiteFideId "24160067"]
[WhiteElo "2326"]
[BlackElo "2492"]
[Result "0-1"]
[Round "04"]
[TimeControl "180+2"]
[Date "2023.05.09"]
[WhiteClock "0:00:06"]
[BlackClock "0:00:03"]

1. e4 {[%clk 0:02:36]}  c6 {[%clk 0:02:59]} 2. d4 {[%clk 0:02:35]}  d5 {[%clk 0:03:00]} 3. e5 {[%clk 0:02:35]}  Bf5 {[%clk 0:02:59]} 4. h4 {[%clk 0:02:36]}  h5 {[%clk 0:02:59]} 5. Bg5 {[%clk 0:02:37]}  Qb6 {[%clk 0:02:58]} 6. Bd3 {[%clk 0:02:36]}  Qxd4 {[%clk 0:02:57]} 7. Nf3 {[%clk 0:02:35]}  Qg4 {[%clk 0:02:57]} 8. O-O {[%clk 0:02:30]}  f6 {[%clk 0:02:54]} 9. exf6 {[%clk 0:02:29]}  gxf6 {[%clk 0:02:54]} 10. Bxf5 {[%clk 0:02:01]}  Qxf5 {[%clk 0:02:55]} 11. Nd4 {[%clk 0:01:50]}  Qd7 {[%clk 0:02:47]} 12. Qd3 {[%clk 0:01:44]}  e5 {[%clk 0:02:20]} 13. Re1 {[%clk 0:01:44]}  Kf7 {[%clk 0:02:01]} 14. Bxf6 {[%clk 0:01:37]}  Nxf6 {[%clk 0:01:32]} 15. Rxe5 {[%clk 0:01:35]}  Bd6 {[%clk 0:01:26]} 16. Rg5 {[%clk 0:01:35]}  Rg8 {[%clk 0:01:12]} 17. Rxg8 {[%clk 0:01:35]}  Kxg8 {[%clk 0:01:12]} 18. Qg6+ {[%clk 0:01:35]}  Qg7 {[%clk 0:01:12]} 19. Qxg7+ {[%clk 0:01:35]}  Kxg7 {[%clk 0:01:12]} 20. Nf5+ {[%clk 0:01:36]}  Kg6 {[%clk 0:01:11]} 21. Nxd6 {[%clk 0:01:37]}  Nbd7 {[%clk 0:01:06]} 22. Nd2 {[%clk 0:01:34]}  Ne8 {[%clk 0:00:58]} 23. Nxe8 {[%clk 0:01:30]}  Rxe8 {[%clk 0:00:59]} 24. Kf1 {[%clk 0:01:30]}  Kf5 {[%clk 0:00:55]} 25. Nf3 {[%clk 0:01:27]}  Re4 {[%clk 0:00:51]} 26. Rd1 {[%clk 0:01:23]}  Nf6 {[%clk 0:00:50]} 27. g3 {[%clk 0:01:21]}  c5 {[%clk 0:00:50]} 28. Kg2 {[%clk 0:01:19]}  Ra4 {[%clk 0:00:44]} 29. a3 {[%clk 0:01:18]}  Rc4 {[%clk 0:00:38]} 30. c3 {[%clk 0:01:16]}  Re4 {[%clk 0:00:38]} 31. Rd2 {[%clk 0:01:12]}  b5 {[%clk 0:00:36]} 32. Ng5 {[%clk 0:01:07]}  Re7 {[%clk 0:00:32]} 33. Nh3 {[%clk 0:01:07]}  Rd7 {[%clk 0:00:27]} 34. Nf4 {[%clk 0:01:02]}  a5 {[%clk 0:00:25]} 35. f3 {[%clk 0:00:58]}  Ke5 {[%clk 0:00:20]} 36. Kf2 {[%clk 0:00:57]}  d4 {[%clk 0:00:20]} 37. cxd4+ {[%clk 0:00:58]}  Rxd4 {[%clk 0:00:21]} 38. Re2+ {[%clk 0:00:58]}  Kf5 {[%clk 0:00:21]} 39. Ng2 {[%clk 0:00:51]}  b4 {[%clk 0:00:20]} 40. Ne3+ {[%clk 0:00:51]}  Kg6 {[%clk 0:00:20]} 41. Rc2 {[%clk 0:00:50]}  bxa3 {[%clk 0:00:20]} 42. bxa3 {[%clk 0:00:51]}  Ra4 {[%clk 0:00:20]} 43. Rxc5 {[%clk 0:00:51]}  Rxa3 {[%clk 0:00:20]} 44. Rg5+ {[%clk 0:00:51]}  Kf7 {[%clk 0:00:19]} 45. Rf5 {[%clk 0:00:50]}  Kg6 {[%clk 0:00:19]} 46. Rb5 {[%clk 0:00:49]}  Ra2+ {[%clk 0:00:19]} 47. Kf1 {[%clk 0:00:47]}  Ra3 {[%clk 0:00:19]} 48. Ke2 {[%clk 0:00:47]}  Ra2+ {[%clk 0:00:19]} 49. Kd3 {[%clk 0:00:47]}  Ra3+ {[%clk 0:00:19]} 50. Kd4 {[%clk 0:00:46]}  Ra4+ {[%clk 0:00:17]} 51. Ke5 {[%clk 0:00:45]}  Ra3 {[%clk 0:00:16]} 52. Kd4 {[%clk 0:00:40]}  a4 {[%clk 0:00:15]} 53. Rb6 {[%clk 0:00:39]}  Kf7 {[%clk 0:00:13]} 54. Nc4 {[%clk 0:00:40]}  Ra1 {[%clk 0:00:11]} 55. Ne5+ {[%clk 0:00:38]}  Ke7 {[%clk 0:00:11]} 56. Ng6+ {[%clk 0:00:37]}  Kf7 {[%clk 0:00:11]} 57. Ne5+ {[%clk 0:00:33]}  Ke7 {[%clk 0:00:11]} 58. f4 {[%clk 0:00:34]}  a3 {[%clk 0:00:11]} 59. Rb7+ {[%clk 0:00:30]}  Ke6 {[%clk 0:00:11]} 60. Nd3 {[%clk 0:00:26]}  a2 {[%clk 0:00:09]} 61. Ra7 {[%clk 0:00:26]}  Kf5 {[%clk 0:00:08]} 62. Ra3 {[%clk 0:00:24]}  Rg1 {[%clk 0:00:05]} 63. Rxa2 {[%clk 0:00:19]}  Rxg3 {[%clk 0:00:06]} 64. Ra5+ {[%clk 0:00:19]}  Kg4 {[%clk 0:00:06]} 65. Rg5+ {[%clk 0:00:16]}  Kxh4 {[%clk 0:00:06]} 66. Rf5 {[%clk 0:00:16]}  Ng4 {[%clk 0:00:05]} 67. Rf8 {[%clk 0:00:16]}  Rf3 {[%clk 0:00:05]} 68. f5 {[%clk 0:00:16]}  Kg5 {[%clk 0:00:04]} 69. Ke4 {[%clk 0:00:15]}  Rf1 {[%clk 0:00:04]} 70. Rg8+ {[%clk 0:00:14]}  Kf6 {[%clk 0:00:03]} 71. Rg6+ {[%clk 0:00:15]}  Kf7 {[%clk 0:00:04]} 72. Nf4 {[%clk 0:00:15]}  Nf6+ {[%clk 0:00:04]} 73. Ke3 {[%clk 0:00:15]}  Re1+ {[%clk 0:00:03]} 74. Kf2 {[%clk 0:00:14]}  Re5 {[%clk 0:00:03]} 75. Kg3 {[%clk 0:00:09]}  Rxf5 {[%clk 0:00:03]} 76. Rh6 {[%clk 0:00:09]}  Rg5+ {[%clk 0:00:02]} 77. Kf3 {[%clk 0:00:09]}  Kg7 {[%clk 0:00:03]} 78. Nxh5+ {[%clk 0:00:04]}  Kxh6 {[%clk 0:00:01]} 79. Nxf6 {[%clk 0:00:04]}  Rf5+ {[%clk 0:00:02]} 80. Kg4 {[%clk 0:00:05]}  Rxf6 {[%clk 0:00:02]} 81. Kg3 {[%clk 0:00:05]}  Kg7 {[%clk 0:00:03]} 82. Kh4 {[%clk 0:00:06]} 0-1


[Site "https://www.chess.com"]

[Event "Titled Tuesday Blitz May 9 Early 2023"]
[White "Hinds, Nathan"]
[Black "Bambino Filho, Antonio Carlos"]
[WhiteFideId "7400730"]
[BlackFideId "2113163"]
[WhiteElo "2001"]
[BlackElo "2507"]
[Result "0-1"]
[Round "04"]
[TimeControl "180+2"]
[Date "2023.05.09"]
[WhiteClock "0:00:10"]
[BlackClock "0:01:53"]

1. Nf3 {[%clk 0:02:59]}  c5 {[%clk 0:02:59]} 2. c4 {[%clk 0:02:59]}  Nc6 {[%clk 0:03:00]} 3. g3 {[%clk 0:03:00]}  g6 {[%clk 0:03:00]} 4. Bg2 {[%clk 0:03:00]}  Bg7 {[%clk 0:03:00]} 5. Nc3 {[%clk 0:03:01]}  e5 {[%clk 0:03:01]} 6. O-O {[%clk 0:02:58]}  Nge7 {[%clk 0:03:01]} 7. d3 {[%clk 0:02:58]}  O-O {[%clk 0:03:02]} 8. Bg5 {[%clk 0:02:58]}  f6 {[%clk 0:03:02]} 9. Bd2 {[%clk 0:02:56]}  d6 {[%clk 0:03:00]} 10. Ne1 {[%clk 0:02:51]}  f5 {[%clk 0:02:58]} 11. f4 {[%clk 0:02:47]}  Be6 {[%clk 0:02:56]} 12. e4 {[%clk 0:02:44]}  Qd7 {[%clk 0:02:54]} 13. Nc2 {[%clk 0:02:31]}  Nd4 {[%clk 0:02:50]} 14. Nxd4 {[%clk 0:02:28]}  exd4 {[%clk 0:02:50]} 15. Nd5 {[%clk 0:02:28]}  fxe4 {[%clk 0:02:50]} 16. Bxe4 {[%clk 0:02:25]}  Nxd5 {[%clk 0:02:50]} 17. cxd5 {[%clk 0:02:19]}  Bg4 {[%clk 0:02:46]} 18. Qb3 {[%clk 0:02:14]}  Rae8 {[%clk 0:02:42]} 19. Rae1 {[%clk 0:01:57]}  b5 {[%clk 0:02:42]} 20. a4 {[%clk 0:01:40]}  a6 {[%clk 0:02:42]} 21. axb5 {[%clk 0:01:40]}  axb5 {[%clk 0:02:43]} 22. Ra1 {[%clk 0:01:39]}  c4 {[%clk 0:02:42]} 23. Qc2 {[%clk 0:01:28]}  Rc8 {[%clk 0:02:41]} 24. Bb4 {[%clk 0:01:14]}  Rfe8 {[%clk 0:02:27]} 25. Ra6 {[%clk 0:01:02]}  Rxe4 {[%clk 0:02:25]} 26. dxe4 {[%clk 0:00:59]}  d3 {[%clk 0:02:25]} 27. Qf2 {[%clk 0:00:50]}  Be2 {[%clk 0:02:13]} 28. Bc3 {[%clk 0:00:23]}  Bxc3 {[%clk 0:02:06]} 29. bxc3 {[%clk 0:00:24]}  b4 {[%clk 0:02:06]} 30. Rfa1 {[%clk 0:00:17]}  bxc3 {[%clk 0:01:59]} 31. Ra7 {[%clk 0:00:17]}  Rc7 {[%clk 0:01:56]} 32. Rxc7 {[%clk 0:00:16]}  Qxc7 {[%clk 0:01:57]} 33. Ra7 {[%clk 0:00:16]}  Qb8 {[%clk 0:01:57]} 34. Qd4 {[%clk 0:00:15]}  Qb1+ {[%clk 0:01:53]} 35. Kf2 {[%clk 0:00:10]}  Qf1+ {[%clk 0:01:53]} 36. Ke3 {[%clk 0:00:10]}  Qg1# {[%clk 0:01:53]} 0-1


[Site "https://www.chess.com"]

[Event "Titled Tuesday Blitz May 9 Early 2023"]
[White "Pham, Le Thao Nguyen"]
[Black "Kirillov, Dmitry"]
[WhiteFideId "12401226"]
[BlackFideId "34180572"]
[WhiteElo "2286"]
[BlackElo "2161"]
[Result "0-1"]
[Round "04"]
[TimeControl "180+2"]
[Date "2023.05.09"]
[WhiteClock "0:00:00"]
[BlackClock "0:00:12"]

1. d4 {[%clk 0:02:58]}  d5 {[%clk 0:02:58]} 2. Nf3 {[%clk 0:02:58]}  e6 {[%clk 0:02:57]} 3. c4 {[%clk 0:02:57]}  Nf6 {[%clk 0:02:57]} 4. Nc3 {[%clk 0:02:57]}  Bb4 {[%clk 0:02:56]} 5. Bg5 {[%clk 0:02:57]}  h6 {[%clk 0:02:49]} 6. Bxf6 {[%clk 0:02:57]}  Qxf6 {[%clk 0:02:50]} 7. e3 {[%clk 0:02:51]}  c6 {[%clk 0:02:46]} 8. Qb3 {[%clk 0:02:45]}  Qe7 {[%clk 0:02:41]} 9. Bd3 {[%clk 0:02:41]}  O-O {[%clk 0:02:41]} 10. O-O {[%clk 0:02:41]}  Nd7 {[%clk 0:02:40]} 11. Rfd1 {[%clk 0:02:32]}  f5 {[%clk 0:02:38]} 12. Ne5 {[%clk 0:02:01]}  Bd6 {[%clk 0:02:28]} 13. Ng6 {[%clk 0:01:49]}  Qg5 {[%clk 0:02:19]} 14. Nxf8 {[%clk 0:01:48]}  Nxf8 {[%clk 0:02:19]} 15. f4 {[%clk 0:01:47]}  Qf6 {[%clk 0:02:15]} 16. Ne2 {[%clk 0:01:35]}  Bd7 {[%clk 0:02:13]} 17. Qxb7 {[%clk 0:01:25]}  Rb8 {[%clk 0:02:10]} 18. Qxa7 {[%clk 0:01:25]}  dxc4 {[%clk 0:00:49]} 19. Bxc4 {[%clk 0:01:16]}  g5 {[%clk 0:00:49]} 20. Qa4 {[%clk 0:00:49]}  Rxb2 {[%clk 0:00:46]} 21. Rab1 {[%clk 0:00:47]}  Rxb1 {[%clk 0:00:46]} 22. Rxb1 {[%clk 0:00:47]}  gxf4 {[%clk 0:00:47]} 23. exf4 {[%clk 0:00:43]}  Bxf4 {[%clk 0:00:46]} 24. Nxf4 {[%clk 0:00:38]}  Qxd4+ {[%clk 0:00:45]} 25. Kh1 {[%clk 0:00:39]}  Qxf4 {[%clk 0:00:45]} 26. Rf1 {[%clk 0:00:26]}  Qe5 {[%clk 0:00:43]} 27. Qb3 {[%clk 0:00:25]}  c5 {[%clk 0:00:40]} 28. a4 {[%clk 0:00:24]}  Bc6 {[%clk 0:00:38]} 29. a5 {[%clk 0:00:21]}  Kf7 {[%clk 0:00:38]} 30. a6 {[%clk 0:00:19]}  Qe4 {[%clk 0:00:35]} 31. Rg1 {[%clk 0:00:19]}  Ng6 {[%clk 0:00:33]} 32. Bd3 {[%clk 0:00:16]}  Qe3 {[%clk 0:00:22]} 33. Bc2 {[%clk 0:00:14]}  Qd2 {[%clk 0:00:20]} 34. Bxf5 {[%clk 0:00:13]}  Nf4 {[%clk 0:00:18]} 35. Bxe6+ {[%clk 0:00:04]}  Nxe6 {[%clk 0:00:18]} 36. a7 {[%clk 0:00:03]}  Ke7 {[%clk 0:00:15]} 37. Qg3 {[%clk 0:00:00]}  Qa2 {[%clk 0:00:12]} 0-1


[Site "https://www.chess.com"]

[Event "Titled Tuesday Blitz May 9 Early 2023"]
[White "Perera Alfonso, Rene Humberto"]
[Black "Manon-og, Ramon Jr."]
[WhiteFideId "3514722"]
[BlackFideId "5200776"]
[WhiteElo "2313"]
[BlackElo "2334"]
[Result "1-0"]
[Round "04"]
[TimeControl "180+2"]
[Date "2023.05.09"]
[WhiteClock "0:01:21"]
[BlackClock "0:00:08"]

1. e4 {[%clk 0:03:00]}  c5 {[%clk 0:02:59]} 2. Nf3 {[%clk 0:02:59]}  d6 {[%clk 0:02:59]} 3. d4 {[%clk 0:03:00]}  cxd4 {[%clk 0:03:00]} 4. Nxd4 {[%clk 0:03:00]}  Nf6 {[%clk 0:03:01]} 5. Nc3 {[%clk 0:03:01]}  a6 {[%clk 0:03:01]} 6. Be3 {[%clk 0:03:01]}  e5 {[%clk 0:03:01]} 7. Nb3 {[%clk 0:03:01]}  Be7 {[%clk 0:03:01]} 8. h3 {[%clk 0:03:02]}  O-O {[%clk 0:03:01]} 9. Qf3 {[%clk 0:03:02]}  Be6 {[%clk 0:03:01]} 10. O-O-O {[%clk 0:03:02]}  Nbd7 {[%clk 0:03:01]} 11. g4 {[%clk 0:03:02]}  h6 {[%clk 0:03:00]} 12. Rg1 {[%clk 0:03:01]}  Nh7 {[%clk 0:02:59]} 13. Kb1 {[%clk 0:03:00]}  Rc8 {[%clk 0:02:57]} 14. Nd5 {[%clk 0:02:59]}  Bxd5 {[%clk 0:02:56]} 15. exd5 {[%clk 0:03:00]}  Qc7 {[%clk 0:02:43]} 16. Bd3 {[%clk 0:03:00]}  Ng5 {[%clk 0:02:43]} 17. Qg2 {[%clk 0:02:59]}  Nf6 {[%clk 0:02:09]} 18. h4 {[%clk 0:02:57]}  e4 {[%clk 0:02:09]} 19. hxg5 {[%clk 0:02:47]}  exd3 {[%clk 0:02:09]} 20. cxd3 {[%clk 0:02:48]}  Qc2+ {[%clk 0:02:03]} 21. Ka1 {[%clk 0:02:47]}  hxg5 {[%clk 0:02:03]} 22. Rh1 {[%clk 0:02:45]}  Rfe8 {[%clk 0:01:40]} 23. Qh3 {[%clk 0:02:31]}  Kf8 {[%clk 0:01:40]} 24. Qh8+ {[%clk 0:02:29]}  Ng8 {[%clk 0:01:40]} 25. Bd4 {[%clk 0:02:27]}  Bf6 {[%clk 0:01:19]} 26. Bxf6 {[%clk 0:02:27]}  gxf6 {[%clk 0:01:17]} 27. Nd4 {[%clk 0:02:27]}  Qxf2 {[%clk 0:00:35]} 28. Nf5 {[%clk 0:02:25]}  Re7 {[%clk 0:00:20]} 29. Qg7+ {[%clk 0:01:54]}  Ke8 {[%clk 0:00:21]} 30. Qxg8+ {[%clk 0:01:53]}  Kd7 {[%clk 0:00:20]} 31. Qxc8+ {[%clk 0:01:53]}  Kxc8 {[%clk 0:00:20]} 32. Nxe7+ {[%clk 0:01:53]}  Kd7 {[%clk 0:00:21]} 33. Nf5 {[%clk 0:01:53]}  Qf3 {[%clk 0:00:20]} 34. Rde1 {[%clk 0:01:49]}  Qxd5 {[%clk 0:00:17]} 35. Re7+ {[%clk 0:01:47]}  Kc6 {[%clk 0:00:17]} 36. Re4 {[%clk 0:01:32]}  Qxd3 {[%clk 0:00:15]} 37. Rc1+ {[%clk 0:01:32]}  Kb6 {[%clk 0:00:15]} 38. Rd4 {[%clk 0:01:32]}  Qe2 {[%clk 0:00:10]} 39. Rxd6+ {[%clk 0:01:31]}  Ka7 {[%clk 0:00:10]} 40. Rd4 {[%clk 0:01:31]}  a5 {[%clk 0:00:06]} 41. a3 {[%clk 0:01:31]}  Ka6 {[%clk 0:00:04]} 42. Rd6+ {[%clk 0:01:28]}  Ka7 {[%clk 0:00:01]} 43. Rxf6 {[%clk 0:01:24]}  Qxg4 {[%clk 0:00:01]} 44. Rxf7 {[%clk 0:01:22]}  Qf4 {[%clk 0:00:02]} 45. Rcc7 {[%clk 0:01:17]}  Qf1+ {[%clk 0:00:03]} 46. Ka2 {[%clk 0:01:17]}  Ka6 {[%clk 0:00:03]} 47. Rf6+ {[%clk 0:01:11]}  Ka7 {[%clk 0:00:03]} 48. Rxb7+ {[%clk 0:01:10]}  Ka8 {[%clk 0:00:03]} 49. Rf8+ {[%clk 0:01:10]}  Kxb7 {[%clk 0:00:03]} 50. Nd6+ {[%clk 0:01:11]}  Kc6 {[%clk 0:00:03]} 51. Rxf1 {[%clk 0:01:12]}  Kxd6 {[%clk 0:00:04]} 52. Rf5 {[%clk 0:01:12]}  Kc6 {[%clk 0:00:04]} 53. Rxg5 {[%clk 0:01:13]}  Kb6 {[%clk 0:00:05]} 54. Kb3 {[%clk 0:01:12]}  Ka6 {[%clk 0:00:06]} 55. Ka4 {[%clk 0:01:13]}  Kb6 {[%clk 0:00:06]} 56. Rxa5 {[%clk 0:01:13]}  Kb7 {[%clk 0:00:07]} 57. b4 {[%clk 0:01:13]}  Kb6 {[%clk 0:00:07]} 58. Rc5 {[%clk 0:01:14]}  Ka6 {[%clk 0:00:07]} 59. Rc6+ {[%clk 0:01:14]}  Kb7 {[%clk 0:00:07]} 60. b5 {[%clk 0:01:15]}  Ka7 {[%clk 0:00:07]} 61. Ka5 {[%clk 0:01:16]}  Kb7 {[%clk 0:00:08]} 62. a4 {[%clk 0:01:17]}  Ka7 {[%clk 0:00:07]} 63. Rc7+ {[%clk 0:01:17]}  Kb8 {[%clk 0:00:07]} 64. b6 {[%clk 0:01:18]}  Ka8 {[%clk 0:00:07]} 65. Ka6 {[%clk 0:01:19]}  Kb8 {[%clk 0:00:08]} 66. a5 {[%clk 0:01:20]}  Ka8 {[%clk 0:00:08]} 67. Rc8# {[%clk 0:01:21]} 1-0


[Site "https://www.chess.com"]

[Event "Titled Tuesday Blitz May 9 Early 2023"]
[White "Degenbaev, Aziz"]
[Black "Balint, Vilmos"]
[WhiteFideId "13802640"]
[BlackFideId "718050"]
[WhiteElo "2152"]
[BlackElo "2034"]
[Result "1-0"]
[Round "04"]
[TimeControl "180+2"]
[Date "2023.05.09"]
[WhiteClock "0:02:10"]
[BlackClock "0:02:37"]

1. e4 {[%clk 0:03:00]}  e5 {[%clk 0:02:59]} 2. Nf3 {[%clk 0:02:57]}  Nc6 {[%clk 0:02:59]} 3. d4 {[%clk 0:02:56]}  exd4 {[%clk 0:02:59]} 4. Nxd4 {[%clk 0:02:57]}  Bc5 {[%clk 0:02:59]} 5. Nb3 {[%clk 0:02:57]}  Bb6 {[%clk 0:03:00]} 6. Nc3 {[%clk 0:02:57]}  d6 {[%clk 0:03:00]} 7. Qe2 {[%clk 0:02:56]}  Be6 {[%clk 0:03:00]} 8. Be3 {[%clk 0:02:55]}  Nge7 {[%clk 0:03:00]} 9. O-O-O {[%clk 0:02:53]}  Qd7 {[%clk 0:02:58]} 10. f3 {[%clk 0:02:46]}  O-O-O {[%clk 0:02:57]} 11. Bxb6 {[%clk 0:02:37]}  axb6 {[%clk 0:02:57]} 12. Qb5 {[%clk 0:02:22]}  Ne5 {[%clk 0:02:53]} 13. Qb4 {[%clk 0:02:14]}  Qc6 {[%clk 0:02:37]} 14. Bb5 {[%clk 0:02:10]} 1-0


[Site "https://www.chess.com"]

[Event "Titled Tuesday Blitz May 9 Early 2023"]
[White "koncheto"]
[Black "Mike24147"]
[WhiteElo "2481"]
[BlackElo "2308"]
[Result "0-1"]
[Round "04"]
[TimeControl "180+2"]
[Date "2023.05.09"]
[WhiteClock "0:00:00"]
[BlackClock "0:00:14"]

1. d4 {[%clk 0:03:00]}  d5 {[%clk 0:02:58]} 2. Nc3 {[%clk 0:03:01]}  Nf6 {[%clk 0:02:58]} 3. Bf4 {[%clk 0:03:01]}  c6 {[%clk 0:02:57]} 4. e3 {[%clk 0:03:00]}  Bf5 {[%clk 0:02:57]} 5. f3 {[%clk 0:02:59]}  e6 {[%clk 0:02:54]} 6. g4 {[%clk 0:02:58]}  Bg6 {[%clk 0:02:54]} 7. h4 {[%clk 0:02:59]}  h5 {[%clk 0:02:53]} 8. g5 {[%clk 0:02:47]}  Ng8 {[%clk 0:02:51]} 9. Bd3 {[%clk 0:02:46]}  Ne7 {[%clk 0:02:37]} 10. Nge2 {[%clk 0:02:42]}  Nf5 {[%clk 0:02:29]} 11. Ng3 {[%clk 0:02:40]}  Nxg3 {[%clk 0:02:24]} 12. Bxg3 {[%clk 0:02:40]}  Bd6 {[%clk 0:02:20]} 13. Kf2 {[%clk 0:02:13]}  Bxg3+ {[%clk 0:02:17]} 14. Kxg3 {[%clk 0:02:14]}  Qd6+ {[%clk 0:02:17]} 15. f4 {[%clk 0:02:15]}  Bxd3 {[%clk 0:02:14]} 16. Qxd3 {[%clk 0:02:13]}  g6 {[%clk 0:02:15]} 17. Ne2 {[%clk 0:02:09]}  Nd7 {[%clk 0:02:14]} 18. Ng1 {[%clk 0:02:09]}  c5 {[%clk 0:02:05]} 19. Nf3 {[%clk 0:02:04]}  O-O {[%clk 0:01:54]} 20. Ne5 {[%clk 0:01:39]}  Nxe5 {[%clk 0:01:49]} 21. fxe5 {[%clk 0:01:40]}  Qc7 {[%clk 0:01:46]} 22. Rhf1 {[%clk 0:01:38]}  Rac8 {[%clk 0:01:37]} 23. c3 {[%clk 0:01:37]}  b5 {[%clk 0:01:32]} 24. Qxb5 {[%clk 0:01:30]}  Rb8 {[%clk 0:01:25]} 25. Qe2 {[%clk 0:01:30]}  Qa5 {[%clk 0:01:01]} 26. Rf2 {[%clk 0:00:43]}  Rb7 {[%clk 0:00:54]} 27. a3 {[%clk 0:00:37]}  Rfb8 {[%clk 0:00:52]} 28. b4 {[%clk 0:00:38]}  cxb4 {[%clk 0:00:52]} 29. cxb4 {[%clk 0:00:38]}  Rxb4 {[%clk 0:00:52]} 30. Raf1 {[%clk 0:00:27]}  R4b7 {[%clk 0:00:37]} 31. Qd3 {[%clk 0:00:08]}  Kg7 {[%clk 0:00:29]} 32. Rf6 {[%clk 0:00:03]}  Rf8 {[%clk 0:00:21]} 33. R6f3 {[%clk 0:00:02]}  Qa4 {[%clk 0:00:20]} 34. e4 {[%clk 0:00:01]}  dxe4 {[%clk 0:00:18]} 35. Qxe4 {[%clk 0:00:02]}  Rd7 {[%clk 0:00:18]} 36. Qf4 {[%clk 0:00:02]}  Qxd4 {[%clk 0:00:17]} 37. Qf6+ {[%clk 0:00:01]}  Kg8 {[%clk 0:00:18]} 38. Rf4 {[%clk 0:00:01]}  Qd3+ {[%clk 0:00:16]} 39. R1f3 {[%clk 0:00:01]}  Qd2 {[%clk 0:00:14]} 40. Rf2 {[%clk 0:00:02]}  Qe3+ {[%clk 0:00:14]} 41. Kg2 {[%clk 0:00:02]}  Rd2 {[%clk 0:00:13]} 42. Rxd2 {[%clk 0:00:01]}  Qxd2+ {[%clk 0:00:13]} 43. Rf2 {[%clk 0:00:02]}  Qd5+ {[%clk 0:00:14]} 44. Qf3 {[%clk 0:00:02]}  Qxf3+ {[%clk 0:00:14]} 45. Rxf3 {[%clk 0:00:03]}  Rb8 {[%clk 0:00:15]} 46. Kg3 {[%clk 0:00:03]}  Rb5 {[%clk 0:00:15]} 47. Re3 {[%clk 0:00:03]}  Ra5 {[%clk 0:00:15]} 48. Kf4 {[%clk 0:00:03]}  Kf8 {[%clk 0:00:16]} 49. Ke4 {[%clk 0:00:03]}  Ke7 {[%clk 0:00:15]} 50. Kd4 {[%clk 0:00:03]}  Ra4+ {[%clk 0:00:15]} 51. Kc5 {[%clk 0:00:04]}  Rxh4 {[%clk 0:00:16]} 52. Kb5 {[%clk 0:00:04]}  Rg4 {[%clk 0:00:16]} 53. a4 {[%clk 0:00:04]}  h4 {[%clk 0:00:15]} 54. a5 {[%clk 0:00:04]}  Rxg5 {[%clk 0:00:14]} 55. Ka6 {[%clk 0:00:03]}  h3 {[%clk 0:00:14]} 56. Kxa7 {[%clk 0:00:03]}  h2 {[%clk 0:00:13]} 57. Rh3 {[%clk 0:00:02]}  Rxe5 {[%clk 0:00:13]} 58. a6 {[%clk 0:00:00]}  Rh5 {[%clk 0:00:14]} 0-1


[Site "https://www.chess.com"]